[Event "DEN-chT XtraCon 2018-19"]
[Site "Denmark"]
[Date "2019.03.17"]
[Round "9"]
[White "Thogersen, Rasmus"]
[Black "Aabling-Thomsen, Jakob"]
[Result "1-0"]
[ECO "C50"]
[WhiteElo "2298"]
[BlackElo "2369"]
[Annotator "NA"]
[PlyCount "119"]
[EventDate "2018.10.27"]
[EventType "team-tourn"]
[EventCountry "DEN"]
[SourceTitle "playchess.com"]
[Source "ChessBase"]
[SourceQuality "1"]
[TimeControl "40/5400+30:1800+30"]

1. e4 {[%emt 0:00:00]} e5 {[%emt 0:00:00]} 2. Nf3 {[%emt 0:00:00]} Nc6 {[%emt 0:00:57]} 3. Bc4 {[%emt 0:01:44]} Be7 {[%emt 0:06:34]} 4. d4 {[%emt 0:00:35]} d6 {[%emt 0:01:00]} 5. dxe5 {[%emt 0:00:20]} Nxe5 {[%emt 0:01:04]} (5... dxe5 $14 6. Qxd8+ Bxd8) 6. Nxe5 {[%emt 0:00:24]} dxe5 {[%emt 0:00:03]} 7. Qh5 {[%emt 0:00:13]} g6 {[%emt 0:15:10]} 8. Qxe5 {[%emt 0:00:24]} Nf6 {[%emt 0:02:24]} 9. Bh6 {[%emt 0:00:06]} Qd6 {[%emt 0:01:57]} 10. Qxd6 {[%emt 0:00:16]} cxd6 {[%emt 0:00:15]} 11. Nc3 {[%emt 0:00:42]} Be6 {[%emt 0:02:27] C41: Philidor Defence} 12. Bb5+ {[%emt 0:08:41]} Kd8 {[%emt 0:02:17]} 13. f3 {[%emt 0:10:41]} Kc7 {[%emt 0:09:06]} (13... a6 14. Ba4 Kc7 15. O-O-O Rhd8 16. Rhe1 Nd7 17. Bxd7 (17. Bb3 Rac8 18. Nd5+ Bxd5 19. Bxd5 {1-0 (46) Ochsner,T (2326)-Schou Moldt,T (2144) Denmark 2016}) 17... Kxd7 18. Nd5 Bxd5 19. Rxd5 {1-0 (51) Malakhov,V (2696)-Moskalenko,A (2460) Moscow 2014}) 14. O-O-O {[%emt 0:02:13]} Rhg8 $146 {[%emt 0:02:58]} ({Predecessor:} 14... a6) 15. h4 {[%emt 0:05:59]} Rad8 {[%emt 0:02:52]} 16. Bg5 {[%emt 0:08:19]} Rh8 {[%emt 0:08:24]} 17. Bh6 {[%emt 0:02:33]} Bf8 {[%emt 0:09:16]} 18. Bf4 {[%emt 0:10:09]} Be7 {[%emt 0:14:55]} 19. g4 {[%emt 0:04:10]} Kc8 {[%emt 0:04:38]} 20. Rd4 {[%emt 0:05:58]} a6 $18 {[%emt 0:03:51]} 21. Bc4 {[%emt 0:05:50]} Ne8 {[%emt 0:01:59]} 22. e5 {[%emt 0:02:54]} dxe5 {[%emt 0:02:00]} 23. Bxe6+ {[%emt 0:01:07]} fxe6 {[%emt 0:00:01]} 24. Rc4+ {[%emt 0:00:33]} Kb8 {[%emt 0:06:31]} 25. Bxe5+ {[%emt 0:00:07]} Nd6 {[%emt 0:00:02]} 26. Ne4 {[%emt 0:02:42]} Ka8 {[%emt 0:01:39]} 27. Nxd6 {[%emt 0:00:20]} Bxd6 {[%emt 0:00:07]} 28. Bxh8 {[%emt 0:00:04]} Rxh8 {[%emt 0:00:09]} 29. Kd2 {[%emt 0:03:49]} Bg3 {[%emt 0:00:58]} 30. Rh3 {[%emt 0:02:29]} Rd8+ {[%emt 0:00:16]} 31. Ke2 {[%emt 0:01:37]} Bb8 {[%emt 0:01:01]} 32. Rh1 {[%emt 0:00:49]} Bg3 {[%emt 0:00:21]} 33. Rh3 {[%emt 0:00:50]} Bb8 {[%emt 0:00:07]} 34. Re4 {[%emt 0:00:18]} Rd6 {[%emt 0:00:21]} 35. f4 {[%emt 0:00:48]} h5 {[%emt 0:00:13]} 36. gxh5 {[%emt 0:00:29]} gxh5 {[%emt 0:00:01]} 37. c4 {[%emt 0:01:31]} Rd7 {[%emt 0:00:50]} 38. Rg3 {[%emt 0:01:16]} Rf7 {[%emt 0:00:14]} 39. Rg8 {[%emt 0:00:53]} Ka7 {[%emt 0:00:06]} 40. Ke3 {[%emt 0:00:53]} Bd6 {[%emt 0:00:15]} 41. Rg6 {[%emt 0:32:12]} Be7 {[%emt 0:30:42]} 42. Rexe6 {[%emt 0:01:02]} Bxh4 {[%emt 0:00:57]} 43. Rh6 {[%emt 0:03:24]} Bg3 {[%emt 0:00:17]} 44. Ref6 {[%emt 0:00:28]} Re7+ {[%emt 0:01:23]} 45. Kf3 {[%emt 0:00:04]} h4 {[%emt 0:00:06]} 46. f5 {[%emt 0:01:01]} Rd7 {[%emt 0:00:00]} 47. Re6 {[%emt 0:00:00]} Rd4 {[%emt 0:00:00]} 48. Re4 {[%emt 0:00:00]} Rd3+ {[%emt 0:00:00]} 49. Kg4 {[%emt 0:00:00]} Rd2 {[%emt 0:00:00]} 50. f6 {[%emt 0:00:00]} Rxb2 {[%emt 0:00:00]} 51. Rh5 {[%emt 0:00:00]} Rg2 {[%emt 0:00:00]} 52. Rf5 {[%emt 0:00:00]} Bd6+ {[%emt 0:00:00]} 53. Kxh4 {[%emt 0:00:00]} Rxa2 {[%emt 0:00:00]} 54. c5 {[%emt 0:00:00]} Rh2+ {[%emt 0:00:00]} 55. Kg5 {[%emt 0:00:00]} Bf8 {[%emt 0:00:00]} 56. Re8 {[%emt 0:00:00]} Rg2+ {[%emt 0:00:00]} 57. Kh5 {[%emt 0:00:00]} Rg8 {[%emt 0:00:23]} 58. Rd5 {[%emt 0:00:00]} Rh8+ {[%emt 0:00:31]} 59. Kg4 {[%emt 0:00:00]} Rg8+ {[%emt 0:02:15]} 60. Kf5 {[%emt 0:00:00]} 1-0

[Event "DEN-chT XtraCon 2018-19"]
[Site "Denmark"]
[Date "2019.03.17"]
[Round "9"]
[White "Boe, Mads"]
[Black "Pedersen, Jan"]
[Result "1-0"]
[ECO "A46"]
[WhiteElo "2295"]
[BlackElo "2383"]
[Annotator "NA"]
[PlyCount "59"]
[EventDate "2018.10.27"]
[EventType "team-tourn"]
[EventCountry "DEN"]
[SourceTitle "playchess.com"]
[Source "ChessBase"]
[SourceQuality "1"]
[TimeControl "40/5400+30:1800+30"]

1. d4 {[%emt 0:00:00]} Nf6 {[%emt 0:00:07]} 2. Nf3 {[%emt 0:00:44]} d5 {[%emt 0:00:30]} 3. c4 {[%emt 0:00:08]} c6 {[%emt 0:06:37]} 4. cxd5 {[%emt 0:00:08]} cxd5 {[%emt 0:00:03]} 5. Nc3 {[%emt 0:00:12]} Nc6 {[%emt 0:00:12]} 6. Bf4 {[%emt 0:00:08]} a6 {[%emt 0:00:44]} 7. Rc1 {[%emt 0:00:08]} e6 {[%emt 0:00:39]} 8. e3 {[%emt 0:03:44]} Bd6 {[%emt 0:00:48]} 9. Bg5 {[%emt 0:01:36]} Bd7 {[%emt 0:02:24]} 10. Bd3 {[%emt 0:00:47]} h6 {[%emt 0:03:43]} 11. Bh4 {[%emt 0:00:12]} b5 {[%emt 0:06:46]} 12. O-O {[%emt 0:18:57]} Rc8 {[%emt 0:16:12]} 13. a4 {[%emt 0:40:26]} b4 {[%emt 0:01:02]} 14. Nb1 {[%emt 0:02:46]} Qb6 {[%emt 0:03:31]} 15. Nbd2 {[%emt 0:00:47]} Be7 {[%emt 0:16:56]} (15... a5 $14) 16. Qe2 {[%emt 0:01:51]} Ra8 {[%emt 0:05:45]} 17. Nb3 {[%emt 0:04:39]} O-O $18 {[%emt 0:09:55]} 18. Ne5 {[%emt 0:04:06]} g5 {[%emt 0:02:01]} 19. Nxd7 {[%emt 0:06:40]} Nxd7 {[%emt 0:00:07]} 20. Bg3 {[%emt 0:00:06]} f5 {[%emt 0:03:02]} 21. h3 {[%emt 0:01:46]} e5 {[%emt 0:03:55]} 22. Bxe5 {[%emt 0:02:23]} Ncxe5 {[%emt 0:00:27]} 23. dxe5 {[%emt 0:00:08]} Nxe5 {[%emt 0:00:13]} 24. a5 {[%emt 0:02:59]} Qf6 {[%emt 0:01:41]} 25. f4 {[%emt 0:02:33]} Ng6 {[%emt 0:02:00]} 26. Kh1 {[%emt 0:02:22]} g4 {[%emt 0:08:16]} 27. Nd4 {[%emt 0:00:13]} Nh4 {[%emt 0:03:10]} 28. Rc6 {[%emt 0:00:18]} Qg7 {[%emt 0:00:30]} 29. g3 {[%emt 0:01:20]} Nf3 {[%emt 0:00:19]} 30. Nxf5 {[%emt 0:00:20]} 1-0

[Event "DEN-chT XtraCon 2018-19"]
[Site "Denmark"]
[Date "2019.03.17"]
[Round "9"]
[White "Matthiesen, Arne"]
[Black "Sylvan, Jacob"]
[Result "1-0"]
[ECO "D37"]
[WhiteElo "2290"]
[BlackElo "2330"]
[Annotator "NA"]
[PlyCount "161"]
[EventDate "2018.10.27"]
[EventType "team-tourn"]
[EventCountry "DEN"]
[SourceTitle "playchess.com"]
[Source "ChessBase"]
[SourceQuality "1"]
[TimeControl "40/5400+30:1800+30"]

1. d4 {[%emt 0:00:00]} d5 {[%emt 0:00:00]} 2. c4 {[%emt 0:00:00]} e6 {[%emt 0:00:00]} 3. Nf3 {[%emt 0:00:00]} Nf6 {[%emt 0:00:07]} 4. Nc3 {[%emt 0:00:01]} Be7 {[%emt 0:00:16]} 5. g3 {[%emt 0:00:26]} dxc4 {[%emt 0:05:31]} 6. Bg2 {[%emt 0:00:27]} Nc6 {[%emt 0:04:15]} 7. O-O {[%emt 0:03:29]} O-O {[%emt 0:01:29]} 8. e4 {[%emt 0:06:50]} a6 {[%emt 0:02:55]} 9. e5 {[%emt 0:05:45]} Nd5 {[%emt 0:02:24]} 10. Ne4 {[%emt 0:00:56]} f5 {[%emt 0:03:32]} 11. exf6 {[%emt 0:01:53]} Nxf6 {[%emt 0:00:32]} 12. Nc3 {[%emt 0:05:51]} Rb8 {[%emt 0:02:05]} 13. Qe2 {[%emt 0:10:32]} Nxd4 {[%emt 0:05:14]} 14. Nxd4 {[%emt 0:00:15]} Qxd4 {[%emt 0:00:06]} 15. Rd1 {[%emt 0:10:36]} Qg4 {[%emt 0:07:18]} 16. Bf3 {[%emt 0:05:51]} Qf5 {[%emt 0:03:03]} 17. Bf4 {[%emt 0:00:11]} Bd7 {[%emt 0:20:56]} 18. Rxd7 {[%emt 0:10:09]} Nxd7 {[%emt 0:04:17]} 19. Bg4 {[%emt 0:00:26]} Qg6 {[%emt 0:02:29]} 20. Qxe6+ {[%emt 0:04:24]} Qxe6 {[%emt 0:00:55]} 21. Bxe6+ {[%emt 0:00:01]} Kh8 {[%emt 0:00:07]} 22. Bxd7 {[%emt 0:00:09]} Bd6 {[%emt 0:01:09]} 23. Bxd6 {[%emt 0:04:39]} cxd6 {[%emt 0:00:22]} 24. Rd1 {[%emt 0:04:40]} b5 {[%emt 0:11:24]} 25. Be6 {[%emt 0:04:30]} Rb6 {[%emt 0:06:54]} 26. Bd5 {[%emt 0:02:43]} h6 {[%emt 0:02:31]} 27. Ne4 {[%emt 0:00:26]} Rc8 {[%emt 0:01:57]} 28. Rd4 {[%emt 0:00:39]} Rc7 {[%emt 0:03:50]} 29. Kg2 {[%emt 0:01:52]} g6 {[%emt 0:00:36]} 30. h4 {[%emt 0:00:35]} Kg7 {[%emt 0:00:15]} 31. g4 {[%emt 0:00:32]} Re7 {[%emt 0:01:10]} 32. f4 {[%emt 0:03:05]} Kh8 {[%emt 0:02:02]} 33. f5 {[%emt 0:03:22]} gxf5 {[%emt 0:00:15]} 34. gxf5 {[%emt 0:00:01]} Rg7+ {[%emt 0:00:18]} 35. Ng3 {[%emt 0:00:08]} Rb8 {[%emt 0:00:15]} 36. f6 {[%emt 0:01:06]} Rg6 {[%emt 0:00:34]} 37. f7 {[%emt 0:00:36]} Kg7 {[%emt 0:00:24]} 38. Kf3 {[%emt 0:03:59]} Rc8 {[%emt 0:01:08]} 39. Nh5+ {[%emt 0:01:18]} Kf8 {[%emt 0:00:22]} 40. Nf4 {[%emt 0:00:02]} Rf6 {[%emt 0:00:16]} 41. Kg4 {[%emt 0:31:15]} Rxf7 {[%emt 0:10:54]} 42. Bxf7 {[%emt 0:00:00]} Kxf7 {[%emt 0:02:30]} 43. Rxd6 {[%emt 0:00:00]} b4 {[%emt 0:01:18]} 44. Rxh6 {[%emt 0:00:00]} a5 {[%emt 0:06:15]} 45. Ra6 {[%emt 0:00:00]} c3 {[%emt 0:01:12]} 46. bxc3 {[%emt 0:00:00]} bxc3 {[%emt 0:00:08]} 47. Rxa5 {[%emt 0:00:00]} c2 {[%emt 0:00:06]} 48. Nd3 {[%emt 0:00:00]} c1=Q {[%emt 0:03:54]} 49. Nxc1 {[%emt 0:00:00]} Rxc1 {[%emt 0:00:07]} 50. Rf5+ {[%emt 0:00:09]} Kg7 {[%emt 0:00:20]} 51. Rf2 {[%emt 0:00:08]} Kg6 {[%emt 0:02:58]} 52. h5+ {[%emt 0:04:38]} Kh6 {[%emt 0:00:11]} 53. Rf6+ {[%emt 0:01:12]} Kg7 {[%emt 0:00:04]} 54. Ra6 {[%emt 0:00:55]} Rc5 {[%emt 0:00:47]} 55. h6+ {[%emt 0:00:10]} Kh7 {[%emt 0:00:05]} 56. Kf4 {[%emt 0:00:16]} Rd5 {[%emt 0:00:56]} 57. Ke4 {[%emt 0:01:04]} Rd1 {[%emt 0:00:30]} 58. a4 {[%emt 0:00:09]} Rd2 {[%emt 0:00:46]} 59. a5 {[%emt 0:04:15]} Ra2 {[%emt 0:01:20]} 60. Kd4 {[%emt 0:00:11]} Ra1 {[%emt 0:00:12]} 61. Kc4 {[%emt 0:00:21]} Rc1+ {[%emt 0:00:22]} 62. Kb4 {[%emt 0:00:16]} Rb1+ {[%emt 0:00:12]} 63. Kc5 {[%emt 0:00:57]} Ra1 {[%emt 0:00:35]} 64. Ra7+ {[%emt 0:01:42]} Kxh6 {[%emt 0:00:22]} 65. Kb6 {[%emt 0:00:03]} Kg6 {[%emt 0:01:36]} 66. Rc7 {[%emt 0:00:30]} Kf6 {[%emt 0:00:18]} 67. Rc6+ {[%emt 0:02:03]} Ke7 {[%emt 0:00:21]} 68. a6 {[%emt 0:00:12]} Kd7 {[%emt 0:01:37]} 69. Kb7 {[%emt 0:00:20]} Rb1+ {[%emt 0:01:33]} 70. Rb6 {[%emt 0:00:06]} Rc1 {[%emt 0:00:03]} 71. Rb4 {[%emt 0:01:35]} Rc7+ {[%emt 0:00:12]} 72. Kb6 {[%emt 0:00:02]} Rc6+ {[%emt 0:00:30]} 73. Kb7 {[%emt 0:00:47]} Rc7+ {[%emt 0:00:05]} 74. Kb6 {[%emt 0:00:36]} Rc6+ {[%emt 0:00:10]} 75. Kb5 {[%emt 0:00:04]} Kc7 {[%emt 0:04:57]} 76. a7 {[%emt 0:00:13]} Rb6+ {[%emt 0:00:06]} 77. Ka5 {[%emt 0:00:29]} Rxb4 {[%emt 0:00:57]} 78. a8=Q {[%emt 0:00:08]} Rc4 {[%emt 0:00:30]} 79. Kb5 {[%emt 0:00:31]} Rc1 {[%emt 0:00:23]} 80. Qe4 {[%emt 0:00:08]} Rd1 {[%emt 0:00:51]} 81. Qc2+ {[%emt 0:00:12]} 1-0

[Event "DEN-chT XtraCon 2018-19"]
[Site "Denmark"]
[Date "2019.03.17"]
[Round "9"]
[White "Palm, Nikolaj"]
[Black "Rasmussen, Henning"]
[Result "1-0"]
[ECO "D10"]
[WhiteElo "2286"]
[BlackElo "2142"]
[Annotator "NA"]
[PlyCount "67"]
[EventDate "2018.10.27"]
[EventType "team-tourn"]
[EventCountry "DEN"]
[SourceTitle "playchess.com"]
[Source "ChessBase"]
[SourceQuality "1"]
[TimeControl "40/5400+30:1800+30"]

1. d4 {[%emt 0:00:00]} d5 {[%emt 0:00:00]} 2. c4 {[%emt 0:00:00]} c6 {[%emt 0:00:00]} 3. cxd5 {[%emt 0:00:00]} cxd5 {[%emt 0:00:00]} 4. Nf3 {[%emt 0:00:00]} Nf6 {[%emt 0:00:39]} 5. Nc3 {[%emt 0:00:02]} e6 {[%emt 0:00:20]} 6. Bf4 {[%emt 0:00:59]} Nc6 {[%emt 0:00:35]} 7. e3 {[%emt 0:00:23]} Be7 {[%emt 0:02:21]} 8. h3 {[%emt 0:03:31]} O-O {[%emt 0:02:34]} 9. Bd3 {[%emt 0:00:38]} a6 {[%emt 0:00:52]} 10. Rc1 {[%emt 0:00:31]} b5 {[%emt 0:19:17]} 11. O-O {[%emt 0:01:35]} Bb7 {[%emt 0:09:37]} 12. Qe2 {[%emt 0:13:59] D13: Slav Defence: Exchange variation without ...Bf5} Nh5 $146 {[%emt 0:09:08]} ({Predecessor:} 12... Qb6 13. Bg5 h6 14. Bh4 Rfe8 15. Rfd1 Rac8 16. Bb1 Qd8 17. a3 Na5 18. Ne5 Nc4 19. f4 Nd7 20. Bxe7 Rxe7 {½-½ (47) Moreno Ruiz,J (2438)-Narciso Dublan,M (2482) Linares 2016}) 13. Bh2 {[%emt 0:01:11]} g6 {[%emt 0:03:06]} 14. a4 {[%emt 0:05:08]} b4 {[%emt 0:05:10]} 15. Nb1 {[%emt 0:00:59]} Bd6 {[%emt 0:03:05]} 16. Bxd6 {[%emt 0:04:25]} Qxd6 {[%emt 0:00:06]} 17. Nbd2 {[%emt 0:00:24]} f6 {[%emt 0:05:43]} 18. Nb3 {[%emt 0:04:01]} Rae8 {[%emt 0:14:30]} 19. Nc5 {[%emt 0:02:39]} Ba8 {[%emt 0:00:53]} 20. Bxa6 {[%emt 0:02:12]} e5 {[%emt 0:02:26]} 21. dxe5 {[%emt 0:00:57]} fxe5 {[%emt 0:01:55]} 22. Rfd1 {[%emt 0:08:33]} Na5 $2 {[%emt 0:04:16]} (22... Nf6 23. Bb5 Re7) 23. Qb5 $18 {[%emt 0:09:14]} e4 {[%emt 0:04:32]} 24. Nxe4 {[%emt 0:16:28]} Rxe4 {[%emt 0:01:27]} 25. Qxa5 {[%emt 0:00:26]} Qf6 {[%emt 0:06:41]} 26. Rc8 {[%emt 0:06:25]} Rxc8 {[%emt 0:02:05]} 27. Bxc8 {[%emt 0:00:02]} Qc6 {[%emt 0:01:17]} 28. Bd7 {[%emt 0:03:04]} Qb7 {[%emt 0:00:47]} 29. Qd8+ {[%emt 0:00:56]} Kg7 {[%emt 0:00:02]} 30. Nd4 {[%emt 0:01:26]} Kh6 {[%emt 0:01:02]} 31. Rc1 {[%emt 0:03:10]} Nf4 {[%emt 0:00:29]} 32. Qf8+ {[%emt 0:01:56]} Kh5 {[%emt 0:00:16]} 33. Bg4+ {[%emt 0:00:14]} Kh4 {[%emt 0:00:17]} 34. Nf3# {[%emt 0:00:13]} 1-0

[Event "DEN-chT XtraCon 2018-19"]
[Site "Denmark"]
[Date "2019.03.17"]
[Round "9"]
[White "Manosri Jacobsen, Mikkel"]
[Black "Skjoldager, Per"]
[Result "1-0"]
[ECO "D36"]
[WhiteElo "2285"]
[BlackElo "2049"]
[Annotator "NA"]
[PlyCount "95"]
[EventDate "2018.10.27"]
[EventType "team-tourn"]
[EventCountry "DEN"]
[SourceTitle "playchess.com"]
[Source "ChessBase"]
[SourceQuality "1"]
[TimeControl "40/5400+30:1800+30"]

1. d4 {[%emt 0:00:00]} Nf6 {[%emt 0:00:00]} 2. c4 {[%emt 0:00:00]} e6 {[%emt 0:00:00]} 3. Nc3 {[%emt 0:00:00]} d5 {[%emt 0:00:00]} 4. cxd5 {[%emt 0:00:02]} exd5 {[%emt 0:00:00]} 5. Qc2 {[%emt 0:00:07]} c6 {[%emt 0:01:52]} 6. Bg5 {[%emt 0:00:19]} Be7 {[%emt 0:00:41]} 7. e3 {[%emt 0:00:06]} Bg4 {[%emt 0:02:04]} 8. Bd3 {[%emt 0:00:50]} Nbd7 {[%emt 0:00:35]} 9. Nge2 {[%emt 0:01:15]} Nf8 {[%emt 0:08:43] LiveBook: 4 Games} 10. h3 {[%emt 0:09:30] D36: Queen's Gambit Declined: Exchange Variation: Main line (5 Bg5 c6 6 Qc2)} Bd7 $146 {[%emt 0:01:34]} ({Predecessor:} 10... Bh5 11. Ng3 Bg6 12. Nf5 Ne6 13. Bh4 Bxf5 14. Bxf5 g6 15. Bd3 Nh5 16. Bxe7 Qxe7 17. O-O-O Nf6 {½-½ (45) Zhang,P (2577)-Lu,S (2456) Ningbo 2011}) 11. Bf4 {[%emt 0:02:27]} Ne6 {[%emt 0:04:06]} 12. Be5 {[%emt 0:01:33]} Nf8 {[%emt 0:07:29]} 13. g4 {[%emt 0:03:24]} Ng6 {[%emt 0:03:26]} 14. Bg3 {[%emt 0:01:30]} Bc8 {[%emt 0:09:52]} 15. f3 {[%emt 0:03:32]} Bd6 {[%emt 0:01:28]} 16. Bf2 {[%emt 0:00:24]} Bc7 {[%emt 0:10:47]} 17. a3 {[%emt 0:07:59]} Qe7 {[%emt 0:03:48]} 18. Rc1 {[%emt 0:05:24]} O-O {[%emt 0:08:16]} 19. h4 {[%emt 0:09:07]} Rd8 {[%emt 0:06:43]} 20. h5 {[%emt 0:01:52]} Nf8 {[%emt 0:00:17]} 21. g5 {[%emt 0:02:06]} Ne8 {[%emt 0:00:18]} 22. Kd2 {[%emt 0:03:28]} g6 {[%emt 0:01:06]} 23. f4 {[%emt 0:18:31]} Ng7 {[%emt 0:05:19]} 24. Ng3 {[%emt 0:00:15]} Bg4 {[%emt 0:03:10]} (24... Nge6 $14) 25. hxg6 {[%emt 0:01:47]} fxg6 {[%emt 0:00:39]} 26. Rh4 {[%emt 0:00:12]} Be6 {[%emt 0:00:48]} 27. Rch1 {[%emt 0:02:16]} Qd7 {[%emt 0:02:51]} 28. e4 $18 {[%emt 0:09:37]} Re8 {[%emt 0:03:24]} 29. f5 {[%emt 0:03:59]} gxf5 {[%emt 0:01:52]} 30. Nxf5 {[%emt 0:02:33]} dxe4 {[%emt 0:01:29]} 31. Nxe4 {[%emt 0:00:14]} Bd8 {[%emt 0:00:37]} 32. Nxg7 {[%emt 0:01:35]} Qxg7 {[%emt 0:00:43]} 33. Be3 {[%emt 0:02:42]} Bf5 {[%emt 0:01:52]} 34. Nf6+ {[%emt 0:01:58]} Bxf6 {[%emt 0:00:10]} 35. Bxf5 {[%emt 0:00:15]} Bxg5 {[%emt 0:01:45]} 36. Bxg5 {[%emt 0:03:08]} Qxg5+ {[%emt 0:00:08]} 37. Kd1 {[%emt 0:00:05]} Kf7 {[%emt 0:05:20]} 38. Qc5 {[%emt 0:03:08]} Qg3 {[%emt 0:03:39]} 39. Be4 {[%emt 0:00:58]} Re6 {[%emt 0:01:11]} 40. Rf1+ {[%emt 0:01:03]} Rf6 {[%emt 0:00:28]} 41. Rxf6+ {[%emt 0:06:55]} Kxf6 {[%emt 0:00:56]} 42. Qf5+ {[%emt 0:00:17]} Ke7 {[%emt 0:00:19]} 43. Rg4 {[%emt 0:00:08]} Qb3+ {[%emt 0:01:18]} 44. Bc2 {[%emt 0:00:17]} Qf7 {[%emt 0:03:57]} 45. Qe5+ {[%emt 0:01:31]} Ne6 {[%emt 0:00:50]} 46. Bf5 {[%emt 0:01:09]} Re8 {[%emt 0:04:34]} 47. Bxe6 {[%emt 0:00:51]} Qxe6 {[%emt 0:02:48]} 48. Qc7+ {[%emt 0:00:09]} 1-0

[Event "DEN-chT XtraCon 2018-19"]
[Site "Denmark"]
[Date "2019.03.17"]
[Round "9"]
[White "Sobjerg, Erik"]
[Black "Percivaldi, Martin"]
[Result "1/2-1/2"]
[ECO "B20"]
[WhiteElo "2266"]
[BlackElo "2389"]
[Annotator "NA"]
[PlyCount "109"]
[EventDate "2018.10.27"]
[EventType "team-tourn"]
[EventCountry "DEN"]
[SourceTitle "playchess.com"]
[Source "ChessBase"]
[SourceQuality "1"]
[TimeControl "40/5400+30:1800+30"]

1. e4 {[%emt 0:00:00]} c5 {[%emt 0:00:35]} 2. Nf3 {[%emt 0:04:03]} e6 {[%emt 0:00:11]} 3. Nc3 {[%emt 0:00:20]} a6 {[%emt 0:00:48]} 4. d4 {[%emt 0:02:45]} cxd4 {[%emt 0:00:20]} 5. Nxd4 {[%emt 0:00:04]} Qc7 {[%emt 0:00:16]} 6. f4 {[%emt 0:02:45]} b5 {[%emt 0:07:30]} 7. Bd3 {[%emt 0:04:13]} Bb7 {[%emt 0:03:18]} 8. Qe2 {[%emt 0:01:30]} Bc5 {[%emt 0:09:33] B43: Sicilian: Kan Variation: 5 Nc3} (8... Nf6 9. e5 b4 10. Ne4 Nxe4 11. Bxe4 Bc5 12. Nb3 Bb6 13. Bxb7 Qxb7 14. Be3 O-O 15. Bxb6 Qxb6 16. O-O-O {1-0 (64) Nevednichy,V (2557)-Kovalenko,I (2656) Cappelle-la-Grande 2015 EXT 2016 [RR]}) 9. Nf3 {[%emt 0:03:37]} Nc6 {[%emt 0:03:31]} 10. Be3 {[%emt 0:09:01]} Bxe3 {[%emt 0:08:10]} 11. Qxe3 {[%emt 0:00:01]} d6 $146 {[%emt 0:00:15]} ({Predecessor:} 11... Rc8 12. O-O Nge7 13. a4 b4 14. Ne2 O-O 15. Rad1 Na5 16. b3 Qc5 17. Qxc5 Rxc5 18. Rd2 d6 19. e5 {½-½ (19) Mokry,K (2500)-Oral,T (2435) Olomouc 1997}) 12. e5 {[%emt 0:12:42]} Nge7 {[%emt 0:08:57]} (12... dxe5 $11 13. fxe5 Nb4) 13. O-O-O {[%emt 0:08:03]} d5 {[%emt 0:10:26]} (13... dxe5 $15 {keeps the upper hand.} 14. fxe5 Nb4) 14. Kb1 {[%emt 0:06:27]} Na5 {[%emt 0:03:44]} 15. Nd4 {[%emt 0:03:16]} Nc4 {[%emt 0:01:56]} 16. Qe1 {[%emt 0:04:13]} Qb6 {[%emt 0:05:23]} 17. Bxc4 {[%emt 0:02:51]} (17. Nce2 $14) 17... dxc4 {[%emt 0:02:13]} 18. Ne4 {[%emt 0:02:01]} Bxe4 {[%emt 0:00:48]} 19. Qxe4 {[%emt 0:00:06]} O-O {[%emt 0:01:15]} 20. Nf3 {[%emt 0:08:42]} Nf5 {[%emt 0:04:24]} 21. g4 {[%emt 0:00:58]} Qe3 {[%emt 0:00:11]} 22. Rhe1 {[%emt 0:00:50]} Rad8 $11 {[%emt 0:00:49]} 23. Rxd8 {[%emt 0:10:50]} Rxd8 {[%emt 0:00:09]} 24. a3 {[%emt 0:00:26]} Qxe4 {[%emt 0:01:09]} 25. Rxe4 {[%emt 0:00:02]} Rd1+ {[%emt 0:01:56]} 26. Ka2 {[%emt 0:00:02]} Rf1 {[%emt 0:08:37]} 27. Ng5 {[%emt 0:04:32]} h6 {[%emt 0:05:21]} 28. gxf5 {[%emt 0:04:39]} exf5 {[%emt 0:03:21]} 29. e6 {[%emt 0:00:08]} fxe6 {[%emt 0:00:04]} 30. Rxe6 {[%emt 0:00:09]} hxg5 {[%emt 0:00:04]} 31. fxg5 {[%emt 0:00:07]} Kf7 {[%emt 0:02:57]} 32. Rxa6 {[%emt 0:00:02]} f4 {[%emt 0:01:06]} 33. g6+ {[%emt 0:01:26]} Ke7 {[%emt 0:02:19]} 34. a4 {[%emt 0:00:58]} bxa4 {[%emt 0:04:29]} 35. Rxa4 {[%emt 0:00:03]} c3 {[%emt 0:00:31]} 36. bxc3 {[%emt 0:02:44]} Kf6 {[%emt 0:00:20]} 37. c4 {[%emt 0:01:57]} Kxg6 {[%emt 0:00:53]} 38. c5 {[%emt 0:00:14]} Kf6 {[%emt 0:00:18]} 39. c6 {[%emt 0:00:20]} Re1 {[%emt 0:00:52]} 40. Rxf4+ {[%emt 0:01:31]} Ke7 {[%emt 0:00:25]} 41. Rd4 {[%emt 0:11:48]} Re2 {[%emt 0:12:24]} 42. Kb3 {[%emt 0:03:00]} Rxh2 {[%emt 0:02:42]} 43. Rd7+ {[%emt 0:03:31]} Ke8 {[%emt 0:00:07]} 44. Rxg7 {[%emt 0:00:24]} Kd8 {[%emt 0:00:09]} 45. c4 {[%emt 0:00:54]} Rh6 {[%emt 0:00:40]} 46. c7+ {[%emt 0:01:24]} Kc8 {[%emt 0:00:01]} 47. Kb4 {[%emt 0:00:28]} Rb6+ {[%emt 0:00:38]} 48. Kc5 {[%emt 0:00:52]} Rc6+ {[%emt 0:00:08]} 49. Kd5 {[%emt 0:00:33]} Rh6 {[%emt 0:00:05]} 50. c5 {[%emt 0:04:19]} Rh5+ {[%emt 0:01:05]} 51. Kc6 {[%emt 0:01:07]} Rh6+ {[%emt 0:00:02]} 52. Kb5 {[%emt 0:00:09]} Rf6 {[%emt 0:00:22]} 53. c6 {[%emt 0:00:28]} Rf5+ {[%emt 0:00:11]} 54. Kb6 {[%emt 0:00:40]} Rb5+ {[%emt 0:00:06]} 55. Kxb5 {[%emt 0:00:06]} 1/2-1/2

[Event "DEN-chT XtraCon 2018-19"]
[Site "Denmark"]
[Date "2019.03.17"]
[Round "9"]
[White "Matthiesen, Martin"]
[Black "Hove Kristensen, Kaare"]
[Result "1-0"]
[ECO "D37"]
[WhiteElo "2251"]
[BlackElo "2254"]
[Annotator "NA"]
[PlyCount "61"]
[EventDate "2018.10.27"]
[EventType "team-tourn"]
[EventCountry "DEN"]
[SourceTitle "playchess.com"]
[Source "ChessBase"]
[SourceQuality "1"]
[TimeControl "40/5400+30:1800+30"]

1. d4 {[%emt 0:00:00]} d5 {[%emt 0:00:00]} 2. c4 {[%emt 0:00:00]} e6 {[%emt 0:00:25]} 3. Nc3 {[%emt 0:00:04]} Nf6 {[%emt 0:00:39]} 4. Nf3 {[%emt 0:02:45]} Be7 {[%emt 0:01:06]} 5. Bf4 {[%emt 0:00:09]} O-O {[%emt 0:00:25]} 6. e3 {[%emt 0:00:05]} b6 {[%emt 0:00:14]} 7. Bd3 {[%emt 0:01:54]} Bb7 {[%emt 0:02:08]} 8. O-O {[%emt 0:03:01]} dxc4 {[%emt 0:03:42]} 9. Bxc4 {[%emt 0:00:09]} c5 {[%emt 0:08:31]} 10. dxc5 {[%emt 0:12:48]} Bxc5 {[%emt 0:02:27]} 11. Qe2 {[%emt 0:01:41]} Nbd7 {[%emt 0:08:09]} 12. Rfd1 {[%emt 0:02:52]} Qe7 {[%emt 0:03:22]} 13. a3 {[%emt 0:02:42]} a5 {[%emt 0:09:44]} 14. Na4 {[%emt 0:13:08]} e5 {[%emt 0:16:25]} 15. Bg3 {[%emt 0:02:46]} Bd6 {[%emt 0:03:02]} 16. Bb5 {[%emt 0:02:57]} Rfd8 {[%emt 0:11:28]} 17. Bh4 {[%emt 0:07:00]} Bc7 {[%emt 0:01:24]} 18. Rac1 {[%emt 0:21:18]} Rac8 {[%emt 0:01:26]} 19. Ba6 {[%emt 0:05:03]} Bxa6 {[%emt 0:03:32]} 20. Qxa6 {[%emt 0:00:08]} e4 {[%emt 0:03:29]} 21. Nd4 {[%emt 0:07:39]} Nb8 {[%emt 0:06:16]} 22. Qb5 {[%emt 0:01:15]} Be5 {[%emt 0:08:07]} 23. Nxb6 {[%emt 0:04:47]} Rxc1 {[%emt 0:00:26]} 24. Rxc1 {[%emt 0:00:09]} Bxd4 {[%emt 0:01:24]} 25. exd4 {[%emt 0:00:47]} e3 {[%emt 0:00:44]} 26. d5 {[%emt 0:04:47]} Qe4 {[%emt 0:01:44]} 27. Qc4 {[%emt 0:01:06]} g5 {[%emt 0:01:27]} 28. Qxe4 {[%emt 0:01:43]} Nxe4 {[%emt 0:00:06]} 29. f3 {[%emt 0:00:20]} gxh4 {[%emt 0:01:09]} 30. fxe4 {[%emt 0:00:07]} Nd7 {[%emt 0:01:23]} 31. Nc4 {[%emt 0:01:37]} 1-0